fUSD/lending_fUSD_20250823
["ID","MTS","AMOUNT","RATE_DAILY","PERIOD"]
[380959769,1755912776902,-400.0,0.00016986,2]
[380959770,1755912776912,-530.85,0.00016986,2]
[380959771,1755912776922,-508.77,0.00016986,2]
[380959772,1755912776931,-956.53,0.00016986,2]
[380959773,1755912776941,-400.0,0.00016986,2]
[380959774,1755912776950,-400.0,0.00016986,2]
[380959775,1755912776960,-690.94,0.00016986,2]
[380959776,1755912776970,-781.78,0.00016986,2]
[380959777,1755912776980,-407.82,0.00016986,2]
[380959778,1755912776990,-516.0,0.00016986,2]
[380959779,1755912777000,-400.0,0.00016986,2]
[380959780,1755912777011,-573.49,0.00016986,2]
[380959781,1755912777020,-400.0,0.00016986,2]
[380959782,1755912777029,-548.91,0.00016986,2]
[380959783,1755912777039,-400.0,0.00016986,2]
[380959784,1755912777048,-2566.25,0.00016986,2]
[380959785,1755912777058,-468.96,0.00016986,2]
[380959786,1755912777069,-947.84,0.00016986,2]
[380959787,1755912777078,-1053.52,0.00016986,2]
[380959788,1755912777087,-400.0,0.00016986,2]
[380959789,1755912777097,-1155.0,0.00016986,2]
[380959790,1755912777107,-659.68,0.00016986,2]
[380959791,1755912777116,-691.7,0.00016986,2]
[380959792,1755912777125,-557.81,0.00016986,2]
[380959793,1755912777135,-1327.17,0.00016986,2]
[380959794,1755912777144,-719.87,0.00016986,2]
[380959795,1755912777154,-621.05,0.00016986,2]
[380959796,1755912777164,-532.88,0.00016986,2]
[380959797,1755912777174,-400.0,0.00016986,2]
[380959798,1755912777184,-482.24,0.00016986,2]
[380959799,1755912777194,-825.64,0.00016986,2]
[380959800,1755912777204,-786.36,0.00016986,2]
[380959801,1755912777214,-811.77,0.00016986,2]
[380959802,1755912777224,-420.99,0.00016986,2]
[380959803,1755912777233,-448.05,0.00016986,2]
[380959804,1755912777243,-508.4,0.00016986,2]
[380959805,1755912777253,-400.0,0.00016986,2]
[380959806,1755912777264,-471.12,0.00016986,2]
[380959807,1755912777274,-522.09,0.00016986,2]
[380959808,1755912777284,-478.08,0.00016986,2]
[380959809,1755912777294,-400.0,0.00016986,2]
[380959810,1755912777303,-1160.25,0.00016986,2]
[380959811,1755912777314,-400.0,0.00016986,2]
[380959812,1755912777324,-413.45,0.00016986,2]
[380959813,1755912777334,-400.01,0.00016986,2]
[380959814,1755912777345,-1658.24,0.00016986,2]
[380959815,1755912777355,-876.0,0.00016986,2]
[380959816,1755912777365,-928.99,0.00016986,2]
[380959817,1755912777375,-1082.57,0.00016986,2]
[380959818,1755912777385,-599.68,0.00016986,2]
[380959819,1755912777394,-400.0,0.00016986,2]
[380959820,1755912777408,-576.13,0.00016986,2]
[380959821,1755912777420,-581.91,0.00016986,2]
[380959822,1755912777430,-535.34,0.00016986,2]
[380959823,1755912777442,-808.82,0.00016986,2]
[380959824,1755912777452,-704.93,0.00016986,2]
[380959825,1755912777461,-629.77,0.00016986,2]
[380959826,1755912777472,-909.17,0.00016986,2]
[380959827,1755912777482,-757.81,0.00016986,2]
[380959828,1755912777492,-458.74,0.00016986,2]
[380959829,1755912777502,-677.9,0.00016986,2]
[380959830,1755912777512,-400.0,0.00016986,2]
[380959831,1755912777521,-1628.12,0.00016986,2]
[380959832,1755912777531,-400.0,0.00016986,2]
[380959833,1755912777540,-556.37,0.00016986,2]
[380959834,1755912777550,-412.49,0.00016986,2]
[380959835,1755912777559,-562.56,0.00016986,2]
[380959836,1755912777568,-554.4,0.00016986,2]
[380959837,1755912777578,-699.23,0.00016986,2]
[380959838,1755912777588,-442.39,0.00016986,2]
[380959839,1755912777597,-901.46,0.00016986,2]
[380959840,1755912777606,-627.55,0.00016986,2]
[380959841,1755912777616,-475.41,0.00016986,2]
[380959842,1755912777625,-400.0,0.00016986,2]
[380959843,1755912777635,-400.0,0.00016986,2]
[380959844,1755912777645,-493.66,0.00016986,2]
[380959845,1755912777654,-618.33,0.00016986,2]
[380959846,1755912777663,-400.0,0.00016986,2]
[380959847,1755912777672,-400.0,0.00016986,2]
[380959848,1755912777682,-1043.76,0.00016986,2]
[380959849,1755912777692,-165.091095,0.00016986,2]
[380959850,1755912777702,-400.0,0.00016986,2]
[380959851,1755912777712,-400.0,0.00016986,2]
[380959852,1755912777721,-415.82,0.00016986,2]
[380959853,1755912777731,-491.94,0.00016986,2]
[380959854,1755912777741,-682.29,0.00016986,2]
[380959855,1755912777750,-400.0,0.00016986,2]
[380959856,1755912777760,-640.17,0.00016986,2]
[380959857,1755912777769,-427.73,0.00016986,2]
[380959858,1755912777779,-568.93,0.00016986,2]
[380959859,1755912777789,-537.21,0.00016986,2]
[380959860,1755912777798,-501.87,0.00016986,2]
[380959861,1755912777808,-468.97,0.00016986,2]
[380959862,1755912777818,-577.38,0.00016986,2]
[380959863,1755912777828,-620.18,0.00016986,2]
[380959864,1755912777839,-457.02,0.00016986,2]
[380959865,1755912777849,-400.0,0.00016986,2]
[380959866,1755912777859,-773.99,0.00016986,2]
[380959867,1755912777870,-1005.26,0.00016986,2]
[380959868,1755912777879,-400.0,0.00016986,2]
[380959869,1755912777889,-400.0,0.00016986,2]
[380959870,1755912777899,-400.0,0.00016986,2]
[380959871,1755912777908,-400.0,0.00016986,2]
[380959872,1755912777919,-400.0,0.00016986,2]
[380959873,1755912777929,-400.0,0.00016986,2]
[380959874,1755912777938,-407.11,0.00016986,2]
[380959875,1755912777947,-610.39,0.00016986,2]
[380959876,1755912777957,-646.19,0.00016986,2]
[380959877,1755912777967,-933.58,0.00016986,2]
[380959878,1755912777976,-431.04,0.00016986,2]
[380959879,1755912777986,-400.0,0.00016986,2]
[380959880,1755912777996,-605.05,0.00016986,2]
[380959881,1755912778006,-400.0,0.00016986,2]
[380959882,1755912778017,-664.71,0.00016986,2]
[380959883,1755912778026,-938.83,0.00016986,2]
[380959884,1755912778037,-490.42,0.00016986,2]
[380959885,1755912778047,-546.05,0.00016986,2]
[380959886,1755912778057,-1070.54,0.00016986,2]
[380959887,1755912778066,-410.97,0.00016986,2]
[380959888,1755912778076,-570.73,0.00016986,2]
[380959889,1755912778085,-665.32,0.00016986,2]
[380959890,1755912778095,-716.24,0.00016986,2]
[380959891,1755912778105,-400.0,0.00016986,2]
[380959892,1755912778115,-400.0,0.00016986,2]
[380959893,1755912778124,-697.95,0.00016986,2]
[380959894,1755912778135,-400.0,0.00016986,2]
[380959895,1755912778145,-731.6,0.00016986,2]
[380959896,1755912778155,-1401.51,0.00016986,2]
[380959897,1755912778164,-509.97,0.00016986,2]
[380959898,1755912778174,-400.0,0.00016986,2]
[380959899,1755912778184,-474.27,0.00016986,2]
[380959900,1755912778193,-1143.48,0.00016986,2]
[380959901,1755912778203,-633.21,0.00016986,2]
[380959902,1755912778213,-551.73,0.00016986,2]
[380959903,1755912778223,-1150.35,0.00016986,2]
[380959904,1755912778234,-400.0,0.00016986,2]
[380959905,1755912778244,-803.81,0.00016986,2]
[380959906,1755912778254,-400.0,0.00016986,2]
[380959907,1755912778263,-507.56,0.00016986,2]
[380959908,1755912778273,-709.31,0.00016986,2]
[380959909,1755912778283,-1049.21,0.00016986,2]
[380959910,1755912778292,-400.0,0.00016986,2]
[380959911,1755912778302,-870.96,0.00016986,2]
[380959912,1755912778311,-400.0,0.00016986,2]
[380959913,1755912778321,-599.05,0.00016986,2]
[380959914,1755912778331,-640.94,0.00016986,2]
[380959915,1755912778340,-878.26,0.00016986,2]
[380959916,1755912778350,-400.0,0.00016986,2]
[380959917,1755912778362,-518.56,0.00016986,2]
[380959918,1755912778372,-784.45,0.00016986,2]
[380959919,1755912778385,-671.68,0.00016986,2]
[380959920,1755912778399,-1743.04,0.00016986,2]
[380959921,1755912778413,-939.87,0.00016986,2]
[380959922,1755912778423,-538.86,0.00016986,2]
[380959923,1755912778432,-983.76,0.00016986,2]
[380959924,1755912778444,-582.18,0.00016986,2]
[380959925,1755912778453,-743.59,0.00016986,2]
[380959926,1755912778465,-400.0,0.00016986,2]
[380959927,1755912778474,-839.71,0.00016986,2]
[380959928,1755912778484,-400.0,0.00016986,2]
[380959929,1755912778495,-706.05,0.00016986,2]
[380959930,1755912778504,-1021.93,0.00016986,2]
[380959931,1755912778515,-890.17,0.00016986,2]
[380959932,1755912778524,-1278.62,0.00016986,2]
[380959933,1755912778534,-649.66,0.00016986,2]
[380959934,1755912778543,-400.0,0.00016986,2]
[380959935,1755912778553,-527.2,0.00016986,2]
[380959936,1755912778563,-634.12,0.00016986,2]
[380959937,1755912778573,-784.4,0.00016986,2]
[380959938,1755912778583,-726.51,0.00016986,2]
[380959939,1755912778592,-971.12,0.00016986,2]
[380959940,1755912778601,-754.33,0.00016986,2]
[380959941,1755912778611,-1099.97,0.00016986,2]
[380959942,1755912778621,-1154.79,0.00016986,2]
[380959943,1755912778630,-153.492172,0.00016986,2]
[380959944,1755912778639,-691.37,0.00016986,2]
[380959945,1755912778649,-1157.08,0.00016986,2]
[380959946,1755912778659,-400.0,0.00016986,2]
[380959947,1755912778668,-1203.18,0.00016986,2]
[380959948,1755912778678,-535.95,0.00016986,2]
[380959949,1755912778687,-888.95,0.00016986,2]
[380959950,1755912778697,-656.19,0.00016986,2]
[380959951,1755912778706,-985.25,0.00016986,2]
[380959952,1755912778716,-807.2,0.00016986,2]
[380959953,1755912778726,-1439.09,0.00016986,2]
[380959954,1755912778735,-659.77,0.00016986,2]
[380959955,1755912778745,-400.0,0.00016986,2]
[380959956,1755912778754,-583.57,0.00016986,2]
[380959957,1755912778764,-731.16,0.00016986,2]
[380959958,1755912778774,-890.52,0.00016986,2]
[380959959,1755912778783,-400.0,0.00016986,2]
[380959960,1755912778793,-766.72,0.00016986,2]
[380959961,1755912778802,-635.62,0.00016986,2]
[380959962,1755912778811,-855.77,0.00016986,2]
[380959963,1755912778821,-986.02,0.00016986,2]
[380959964,1755912778830,-963.55,0.00016986,2]
[380959965,1755912778840,-967.68,0.00016986,2]
[380959966,1755912778849,-400.0,0.00016986,2]
[380959967,1755912778859,-482.07,0.00016986,2]
[380959968,1755912778869,-466.03,0.00016986,2]
[380959969,1755912778878,-859.0,0.00016986,2]
[380959970,1755912778888,-507.72,0.00016986,2]
[380959971,1755912778898,-828.37,0.00016986,2]
[380959972,1755912778907,-1494.7,0.00016986,2]
[380959973,1755912778917,-777.58,0.00016986,2]
[380959974,1755912778927,-400.0,0.00016986,2]
[380959975,1755912778936,-400.0,0.00016986,2]
[380959976,1755912778946,-506.23,0.00016986,2]
[380959977,1755912778955,-781.12,0.00016986,2]
[380959978,1755912778965,-479.67,0.00016986,2]
[380959979,1755912778975,-937.77,0.00016986,2]
[380959980,1755912778984,-755.98,0.00016986,2]
[380959981,1755912778993,-585.32,0.00016986,2]
[380959982,1755912779003,-400.0,0.00016986,2]
[380959983,1755912779114,-941.46,0.00016986,2]
[380959984,1755912779124,-979.86,0.00016986,2]
[380959985,1755912779133,-1039.23,0.00016986,2]
[380959986,1755912779143,-545.13,0.00016986,2]
[380959987,1755912779152,-873.74,0.00016986,2]
[380959988,1755912779162,-498.14,0.00016986,2]
[380959989,1755912779171,-650.0,0.00016986,2]
[380959990,1755912779181,-903.77,0.00016986,2]
[380959991,1755912779191,-792.76,0.00016986,2]
[380959992,1755912779201,-400.0,0.00016986,2]
[380959993,1755912779211,-505.4,0.00016986,2]
[380959994,1755912779220,-400.0,0.00016986,2]
[380959995,1755912779230,-958.27,0.00016986,2]
[380959996,1755912779240,-764.74,0.00016986,2]
[380959997,1755912779249,-822.02,0.00016986,2]
[380959998,1755912779260,-400.0,0.00016986,2]
[380959999,1755912779270,-400.0,0.00016986,2]
[380960000,1755912779279,-493.69,0.00016986,2]
[380960001,1755912779289,-550.01,0.00016986,2]
[380960002,1755912779299,-173.295363,0.00016986,2]
[380960003,1755912779309,-400.0,0.00016986,2]
[380960004,1755912779318,-400.0,0.00016986,2]
[380960005,1755912779328,-724.98,0.00016986,2]
[380960006,1755912779338,-957.7,0.00016986,2]
[380960007,1755912779348,-400.0,0.00016986,2]
[380960008,1755912779358,-400.0,0.00016986,2]
[380960009,1755912779368,-532.46,0.00016986,2]
[380960010,1755912779378,-712.18,0.00016986,2]
[380960011,1755912779388,-484.95,0.00016986,2]
[380960012,1755912779402,-839.82,0.00016986,2]
[380960013,1755912779412,-400.0,0.00016986,2]
[380960014,1755912779421,-3061.19,0.00016986,2]
[380960015,1755912779431,-1167.85,0.00016986,2]
[380960016,1755912779440,-402.87,0.00016986,2]
[380960017,1755912779450,-668.01,0.00016986,2]
[380960018,1755912779459,-911.43,0.00016986,2]
[380960019,1755912779468,-400.0,0.00016986,2]
[380960020,1755912779477,-440.73,0.00016986,2]
[380960021,1755912779486,-400.0,0.00016986,2]
[380960022,1755912779496,-631.42,0.00016986,2]
[380960023,1755912779505,-931.59,0.00016986,2]
[380960024,1755912779516,-400.0,0.00016986,2]
[380960025,1755912779525,-585.39,0.00016986,2]
[380960026,1755912779534,-400.0,0.00016986,2]
[380960027,1755912779544,-821.68,0.00016986,2]
[380960028,1755912779553,-613.21,0.00016986,2]
[380960029,1755912779562,-464.46,0.00016986,2]
[380960030,1755912779572,-980.7,0.00016986,2]
[380960031,1755912779581,-408.02,0.00016986,2]
[380960032,1755912779591,-400.0,0.00016986,2]
[380960033,1755912779600,-627.98,0.00016986,2]
[380960034,1755912779610,-840.52,0.00016986,2]
[380960035,1755912779619,-400.0,0.00016986,2]
[380960036,1755912779628,-150.0,0.00016987,2]
[380960037,1755912779638,-150.0,0.00016987,2]
[380960038,1755912779647,-150.0,0.00016987,2]
[380960039,1755912779657,-50394.76861787,0.00017,2]
[380960040,1755912779667,-5013.9056692,0.00017,2]
[380960041,1755912779676,-1000.0,0.00017,4]
[380960042,1755912779685,-1000.0,0.00017,4]
[380960043,1755912779694,-1000.0,0.00017,4]
[380960044,1755912779703,-784.0,0.00017,3]
[380960045,1755912779713,-20216.31190557,0.00017,2]
[380960046,1755912779722,-5000.0,0.00017,2]
[380960047,1755912779731,-17197.0745187,0.00017,2]
[380960048,1755912779740,-566.91452001,0.00017,2]
[380960049,1755912779750,-300.0,0.00017,2]
[380960050,1755912779760,-2000.0,0.00017005,2]
[380960051,1755912779769,-196.55972482,0.00017005,2]
[380960052,1755912779778,-2000.0,0.00017005,2]
[380960053,1755912779787,-1500.0,0.00017012,2]
[380960054,1755912779796,-1000.0,0.00017034,2]
[380960055,1755912779806,-150.0,0.00017076,2]
[380960056,1755912779816,-1000.0,0.00017094,2]
[380960057,1755912779825,-500.0,0.00017138,2]
[380960058,1755912779834,-1000.0,0.00017153,2]
[380960059,1755912779843,-150.0,0.00017173,2]
[380960060,1755912779853,-1000.0,0.00017213,2]
[380960061,1755912779862,-150.0,0.00017226,2]
[380960062,1755912779872,-150.0,0.00017233,2]
[380960063,1755912779881,-150.0,0.00017233,2]
[380960064,1755912779891,-150.0,0.00017233,2]
[380960065,1755912779900,-150.0,0.00017233,2]
[380960066,1755912779910,-150.0,0.00017233,2]
[380960067,1755912779920,-150.0,0.00017233,2]
[380960068,1755912779929,-150.0,0.00017233,2]
[380960069,1755912779939,-150.00000001,0.00017233,2]
[380960070,1755912779949,-150.0,0.00017233,2]
[380960071,1755912779958,-150.0,0.00017233,2]
[380960072,1755912779968,-1297.0,0.00017235,2]
[380960073,1755912779977,-599.0,0.00017235,2]
[380960074,1755912779986,-1657.0,0.00017235,2]
[380960075,1755912779995,-566.0,0.00017235,2]
[380960076,1755912780005,-549.67,0.00017242,2]
[380960077,1755912780015,-150.0,0.00017245,2]
[380960078,1755912780024,-150.0,0.00017245,2]
[380960079,1755912780034,-150.0,0.00017245,2]
[380960080,1755912780043,-150.0,0.00017245,2]
[380960081,1755912780053,-150.0,0.00017245,2]
[380960082,1755912780063,-150.0,0.00017245,2]
[380960083,1755912780072,-150.0,0.00017245,2]
[380960084,1755912780082,-644.55,0.00017245,2]
[380960085,1755912780091,-4153.0,0.00017245,2]
[380960086,1755912780100,-1255.0,0.00017245,2]
[380960087,1755912780109,-2030.0,0.00017245,2]
[380960088,1755912780118,-884.0,0.00017245,2]
[380960089,1755912780128,-6093.0,0.00017245,2]
[380960090,1755912780137,-300.0,0.00017259,2]
[380960091,1755912780147,-300.0,0.00017259,2]
[380960092,1755912780156,-300.0,0.00017259,2]
[380960093,1755912780166,-300.0,0.00017259,2]
[380960094,1755912780175,-300.0,0.00017259,2]
[380960095,1755912780185,-300.0,0.00017259,2]
[380960096,1755912780195,-300.0,0.00017259,2]
[380960097,1755912780206,-300.0,0.00017259,2]
[380960098,1755912780215,-300.0,0.00017259,2]
[380960099,1755912780225,-733.0,0.0001726,2]
[380960100,1755912780235,-500.0,0.0001726,2]
[380960101,1755912780245,-1367.0,0.0001726,2]
[380960102,1755912780255,-250.55017555,0.0001726,2]
[380960103,1755912780266,-300.0,0.0001726,2]
[380960104,1755912780276,-550.0,0.0001726,2]
[380960105,1755912780285,-500.0,0.0001726,2]
[380960106,1755912780295,-500.0,0.0001726,2]
[380960107,1755912780305,-500.0,0.0001726,2]
[380960108,1755912780314,-2066.0,0.0001726,2]
[380960109,1755912780323,-500.0,0.0001726,2]
[380960110,1755912780333,-500.0,0.0001726,2]
[380960111,1755912780342,-1471.92,0.0001726,2]
[380960112,1755912780351,-404.24,0.0001726,2]
[380960113,1755912780360,-400.0,0.0001726,2]
[380960114,1755912780370,-400.0,0.0001726,2]
[380960115,1755912780380,-957.1,0.0001726,2]
[380960116,1755912780389,-500.5,0.0001726,2]
[380960117,1755912780399,-400.0,0.0001726,2]
[380960118,1755912780411,-630.13,0.0001726,2]
[380960119,1755912780421,-484.29,0.0001726,2]
[380960120,1755912780430,-691.2,0.0001726,2]
[380960121,1755912780439,-400.0,0.0001726,2]
[380960122,1755912780449,-564.0,0.0001726,2]
[380960123,1755912780458,-922.66,0.0001726,2]
[380960124,1755912780468,-1309.75,0.0001726,2]
[380960125,1755912780477,-400.0,0.0001726,2]
[380960126,1755912780486,-410.64,0.0001726,2]
[380960127,1755912780497,-400.0,0.0001726,2]
[380960128,1755912780506,-400.0,0.0001726,2]
[380960129,1755912780516,-400.0,0.0001726,2]
[380960130,1755912780526,-400.0,0.0001726,2]
[380960131,1755912780535,-814.35,0.0001726,2]
[380960132,1755912780545,-703.72,0.0001726,2]
[380960133,1755912780555,-400.0,0.0001726,2]
[380960134,1755912780564,-400.0,0.0001726,2]
[380960135,1755912780575,-400.0,0.0001726,2]
[380960136,1755912780584,-400.0,0.0001726,2]
[380960137,1755912780593,-416.84,0.0001726,2]
[380960138,1755912780602,-552.81,0.0001726,2]
[380960139,1755912780611,-565.22,0.0001726,2]
[380960140,1755912780620,-457.37,0.0001726,2]
[380960141,1755912780629,-400.0,0.0001726,2]
[380960142,1755912780638,-400.0,0.0001726,2]
[380960143,1755912780647,-454.18,0.0001726,2]
[380960144,1755912780657,-408.41,0.0001726,2]
[380960145,1755912780667,-429.23,0.0001726,2]
[380960146,1755912780676,-400.0,0.0001726,2]
[380960147,1755912780685,-400.0,0.0001726,2]
[380960148,1755912780694,-400.0,0.0001726,2]
[380960149,1755912780703,-400.0,0.0001726,2]
[380960150,1755912780712,-582.37,0.0001726,2]
[380960151,1755912780721,-400.0,0.0001726,2]
[380960152,1755912780730,-400.0,0.0001726,2]
[380960153,1755912780739,-400.0,0.0001726,2]
[380960154,1755912780748,-759.88,0.0001726,2]
[380960155,1755912780757,-400.0,0.0001726,2]
[380960156,1755912780768,-591.39,0.0001726,2]
[380960157,1755912780777,-413.97,0.0001726,2]
[380960158,1755912780787,-649.74,0.0001726,2]
[380960159,1755912780796,-446.38,0.0001726,2]
[380960160,1755912780812,-506.47,0.0001726,2]
[380960161,1755912780823,-715.02,0.0001726,2]
[380960162,1755912780834,-400.0,0.0001726,2]
[380960163,1755912780843,-537.25,0.0001726,2]
[380960164,1755912780852,-400.0,0.0001726,2]
[380960165,1755912780862,-512.45,0.0001726,2]
[380960166,1755912780871,-527.41,0.0001726,2]
[380960167,1755912780880,-400.0,0.0001726,2]
[380960168,1755912780890,-521.1,0.0001726,2]
[380960169,1755912780899,-400.0,0.0001726,2]
[380960170,1755912780908,-446.92,0.0001726,2]
[380960171,1755912780917,-449.44,0.0001726,2]
[380960172,1755912780926,-178.85278132,0.0001726,2]
[380960173,1755912780935,-675.1,0.0001726,2]
[380960174,1755912780945,-400.0,0.0001726,2]
[380960175,1755912780955,-400.0,0.0001726,2]
[380960176,1755912780964,-609.3,0.0001726,2]
[380960177,1755912780973,-654.03,0.0001726,2]
[380960178,1755912780982,-400.0,0.0001726,2]
[380960179,1755912780992,-400.0,0.0001726,2]
[380960180,1755912781002,-661.96,0.0001726,2]
[380960181,1755912781011,-568.98,0.0001726,2]
[380960182,1755912781022,-400.0,0.0001726,2]
[380960183,1755912781031,-329.82026526,0.0001726,2]
[380960184,1755912781041,-709.86,0.0001726,2]
[380960185,1755912781052,-400.0,0.0001726,2]
[380960186,1755912781061,-812.84,0.0001726,2]
[380960187,1755912781070,-437.4,0.0001726,2]
[380960188,1755912781080,-586.38,0.0001726,2]
[380960189,1755912781089,-442.27,0.0001726,2]
[380960190,1755912781098,-562.61,0.0001726,2]
[380960191,1755912781107,-400.0,0.0001726,2]
[380960192,1755912781116,-400.0,0.0001726,2]
[380960193,1755912781125,-845.65,0.0001726,2]
[380960194,1755912781134,-441.24,0.0001726,2]
[380960195,1755912781143,-529.98,0.0001726,2]
[380960196,1755912781152,-400.0,0.0001726,2]
[380960197,1755912781162,-400.0,0.0001726,2]
[380960198,1755912781172,-570.39,0.0001726,2]
[380960199,1755912781182,-400.0,0.0001726,2]
[380960200,1755912781191,-421.77,0.0001726,2]
[380960201,1755912781200,-400.0,0.0001726,2]
[380960202,1755912781210,-400.0,0.0001726,2]
[380960203,1755912781219,-400.0,0.0001726,2]
[380960204,1755912781229,-400.0,0.0001726,2]
[380960205,1755912781238,-464.48,0.0001726,2]
[380960206,1755912781247,-415.36,0.0001726,2]
[380960207,1755912781256,-530.98,0.0001726,2]
[380960208,1755912781267,-400.0,0.0001726,2]
[380960209,1755912781276,-516.79,0.0001726,2]
[380960210,1755912781285,-512.43,0.0001726,2]
[380960211,1755912781295,-400.0,0.0001726,2]
[380960212,1755912781304,-400.0,0.0001726,2]
[380960213,1755912781313,-400.0,0.0001726,2]
[380960214,1755912781322,-400.0,0.0001726,2]
[380960215,1755912781332,-409.44,0.0001726,2]
[380960216,1755912781341,-400.0,0.0001726,2]
[380960217,1755912781350,-400.0,0.0001726,2]
[380960218,1755912781359,-499.57,0.0001726,2]
[380960219,1755912781370,-577.94,0.0001726,2]
[380960220,1755912781379,-400.0,0.0001726,2]
[380960221,1755912781389,-400.0,0.0001726,2]
[380960222,1755912781399,-476.9,0.0001726,2]
[380960223,1755912781410,-637.7,0.0001726,2]
[380960224,1755912781420,-423.83,0.0001726,2]
[380960225,1755912781429,-400.0,0.0001726,2]
[380960226,1755912781439,-459.29,0.0001726,2]
[380960227,1755912781448,-873.47,0.0001726,2]
[380960228,1755912781458,-571.62,0.0001726,2]
[380960229,1755912781467,-409.95,0.0001726,2]
[380960230,1755912781476,-1704.41,0.0001726,2]
[380960231,1755912781486,-400.0,0.0001726,2]
[380960232,1755912781496,-549.98,0.0001726,2]
[380960233,1755912781507,-400.0,0.0001726,2]
[380960234,1755912781516,-400.0,0.0001726,2]
[380960235,1755912781526,-531.47,0.0001726,2]
[380960236,1755912781535,-400.0,0.0001726,2]
[380960237,1755912781544,-456.18,0.0001726,2]
[380960238,1755912781554,-400.0,0.0001726,2]
[380960239,1755912781563,-161.73,0.0001726,2]
[380960240,1755912781572,-890.29,0.0001726,2]
[380960241,1755912781582,-400.0,0.0001726,2]
[380960242,1755912781591,-406.1,0.0001726,2]
[380960243,1755912781600,-400.0,0.0001726,2]
[380960244,1755912781609,-421.32,0.0001726,2]
[380960245,1755912781618,-382.71630256,0.0001726,2]
[380960246,1755912781628,-478.43,0.0001726,2]
[380960247,1755912781638,-400.0,0.0001726,2]
[380960248,1755912781647,-487.04,0.0001726,2]
[380960249,1755912781656,-595.85,0.0001726,2]
[380960250,1755912781665,-510.81,0.0001726,2]
[380960251,1755912781675,-542.43,0.0001726,2]
[380960252,1755912781684,-451.04,0.0001726,2]
[380960253,1755912781693,-400.0,0.0001726,2]
[380960254,1755912781702,-477.02,0.0001726,2]
[380960255,1755912781711,-667.8,0.0001726,2]
[380960256,1755912781720,-400.0,0.0001726,2]
[380960257,1755912781729,-400.0,0.0001726,2]
[380960258,1755912781738,-754.76,0.0001726,2]
[380960259,1755912781747,-400.0,0.0001726,2]
[380960260,1755912781757,-1030.1,0.0001726,2]
[380960261,1755912781767,-510.89,0.0001726,2]
[380960262,1755912781777,-436.99,0.0001726,2]
[380960263,1755912781786,-657.25,0.0001726,2]
[380960264,1755912781796,-400.0,0.0001726,2]
[380960265,1755912781806,-400.0,0.0001726,2]
[380960266,1755912781817,-400.0,0.0001726,2]
[380960267,1755912781826,-417.45,0.0001726,2]
[380960268,1755912781837,-1067.81,0.0001726,2]